[Event "Titled Tuesday Blitz August 02 Late 2022"]
[White "Wachinger, Nikolas"]
[Black "Yoo, Christopher Woojin"]
[WhiteFideId "12962791"]
[BlackFideId "30909694"]
[WhiteElo "2253"]
[BlackElo "2105"]
[Result "1/2-1/2"]
[Round "03"]
[TimeControl "180+1"]
[Date "2022.08.02"]
[WhiteClock "0:00:10"]
[BlackClock "0:00:08"]

1. d4 {[%clk 0:03:00]}  Nf6 {[%clk 0:02:58]} 2. Nf3 {[%clk 0:03:01]}  d5 {[%clk 0:02:57]} 3. Bf4 {[%clk 0:03:01]}  c5 {[%clk 0:02:54]} 4. e3 {[%clk 0:03:01]}  Nc6 {[%clk 0:02:54]} 5. Nbd2 {[%clk 0:03:02]}  cxd4 {[%clk 0:02:52]} 6. exd4 {[%clk 0:03:02]}  Bg4 {[%clk 0:02:42]} 7. c3 {[%clk 0:03:02]}  e6 {[%clk 0:02:42]} 8. Qb3 {[%clk 0:03:00]}  Qc8 {[%clk 0:02:42]} 9. h3 {[%clk 0:02:54]}  Bh5 {[%clk 0:02:42]} 10. Bd3 {[%clk 0:02:54]}  Be7 {[%clk 0:02:41]} 11. O-O {[%clk 0:02:53]}  O-O {[%clk 0:02:40]} 12. Rfe1 {[%clk 0:02:53]}  Bg6 {[%clk 0:02:29]} 13. Bxg6 {[%clk 0:02:52]}  hxg6 {[%clk 0:02:30]} 14. g3 {[%clk 0:02:48]}  Nh5 {[%clk 0:01:54]} 15. Be3 {[%clk 0:02:40]}  Bd6 {[%clk 0:01:42]} 16. Kg2 {[%clk 0:02:39]}  Qd7 {[%clk 0:01:38]} 17. h4 {[%clk 0:02:24]}  Rfe8 {[%clk 0:01:36]} 18. Ng5 {[%clk 0:02:18]}  Nf6 {[%clk 0:01:32]} 19. Ndf3 {[%clk 0:02:14]}  Na5 {[%clk 0:01:28]} 20. Qd1 {[%clk 0:02:09]}  Nc4 {[%clk 0:01:28]} 21. Bc1 {[%clk 0:02:07]}  Rac8 {[%clk 0:01:18]} 22. Ne5 {[%clk 0:02:04]}  Bxe5 {[%clk 0:01:14]} 23. dxe5 {[%clk 0:02:05]}  Nh7 {[%clk 0:01:14]} 24. Nxh7 {[%clk 0:02:01]}  Kxh7 {[%clk 0:01:15]} 25. h5 {[%clk 0:02:01]}  d4 {[%clk 0:00:53]} 26. hxg6+ {[%clk 0:01:50]}  fxg6 {[%clk 0:00:52]} 27. Re4 {[%clk 0:01:38]}  Qc6 {[%clk 0:00:43]} 28. Qf3 {[%clk 0:01:22]}  dxc3 {[%clk 0:00:33]} 29. bxc3 {[%clk 0:01:23]}  Rf8 {[%clk 0:00:22]} 30. Rh4+ {[%clk 0:01:23]}  Kg8 {[%clk 0:00:23]} 31. Qxc6 {[%clk 0:01:23]}  Rxc6 {[%clk 0:00:24]} 32. Bf4 {[%clk 0:01:23]}  g5 {[%clk 0:00:21]} 33. Bxg5 {[%clk 0:01:21]}  Nxe5 {[%clk 0:00:22]} 34. Re4 {[%clk 0:01:16]}  Nd3 {[%clk 0:00:18]} 35. Be3 {[%clk 0:01:13]}  Rxc3 {[%clk 0:00:15]} 36. Rxe6 {[%clk 0:01:13]}  Rc2 {[%clk 0:00:11]} 37. Rf1 {[%clk 0:01:08]}  Rxa2 {[%clk 0:00:12]} 38. Re7 {[%clk 0:01:08]}  b5 {[%clk 0:00:11]} 39. Bxa7 {[%clk 0:00:57]}  Rf7 {[%clk 0:00:11]} 40. Rxf7 {[%clk 0:00:57]}  Kxf7 {[%clk 0:00:11]} 41. Bd4 {[%clk 0:00:57]}  Ra4 {[%clk 0:00:03]} 42. Be3 {[%clk 0:00:56]}  b4 {[%clk 0:00:03]} 43. Rd1 {[%clk 0:00:56]}  Ra3 {[%clk 0:00:04]} 44. Kf3 {[%clk 0:00:52]}  Ne5+ {[%clk 0:00:03]} 45. Ke2 {[%clk 0:00:52]}  Ra2+ {[%clk 0:00:03]} 46. Rd2 {[%clk 0:00:45]}  b3 {[%clk 0:00:03]} 47. Rxa2 {[%clk 0:00:35]}  bxa2 {[%clk 0:00:04]} 48. Bd4 {[%clk 0:00:35]}  Nc4 {[%clk 0:00:04]} 49. Kd3 {[%clk 0:00:32]}  Na3 {[%clk 0:00:04]} 50. f4 {[%clk 0:00:29]}  g6 {[%clk 0:00:02]} 51. g4 {[%clk 0:00:29]}  Nb5 {[%clk 0:00:02]} 52. Bb2 {[%clk 0:00:29]}  Nc7 {[%clk 0:00:01]} 53. Ke4 {[%clk 0:00:26]}  Ne8 {[%clk 0:00:02]} 54. Ke5 {[%clk 0:00:25]}  Nf6 {[%clk 0:00:02]} 55. g5 {[%clk 0:00:20]}  Nd7+ {[%clk 0:00:02]} 56. Kd5 {[%clk 0:00:19]}  Nb6+ {[%clk 0:00:02]} 57. Ke4 {[%clk 0:00:18]}  Ke6 {[%clk 0:00:02]} 58. Kd4 {[%clk 0:00:17]}  Kf5 {[%clk 0:00:02]} 59. Ba1 {[%clk 0:00:15]}  Kxf4 {[%clk 0:00:02]} 60. Kc5 {[%clk 0:00:16]}  Nc8 {[%clk 0:00:02]} 61. Kb4 {[%clk 0:00:16]}  Kxg5 {[%clk 0:00:02]} 62. Kb3 {[%clk 0:00:16]}  Kf4 {[%clk 0:00:02]} 63. Kxa2 {[%clk 0:00:17]}  Nd6 {[%clk 0:00:02]} 64. Bf6 {[%clk 0:00:17]}  Ne4 {[%clk 0:00:02]} 65. Bd8 {[%clk 0:00:17]}  Kf5 {[%clk 0:00:02]} 66. Kb3 {[%clk 0:00:17]}  Nf6 {[%clk 0:00:01]} 67. Kc2 {[%clk 0:00:15]}  g5 {[%clk 0:00:02]} 68. Kd3 {[%clk 0:00:16]}  g4 {[%clk 0:00:02]} 69. Bxf6 {[%clk 0:00:09]}  Kxf6 {[%clk 0:00:02]} 70. Ke3 {[%clk 0:00:09]}  Kg5 {[%clk 0:00:02]} 71. Kf2 {[%clk 0:00:09]}  Kh4 {[%clk 0:00:03]} 72. Kg2 {[%clk 0:00:09]}  g3 {[%clk 0:00:04]} 73. Kg1 {[%clk 0:00:09]}  Kg4 {[%clk 0:00:04]} 74. Kg2 {[%clk 0:00:09]}  Kf4 {[%clk 0:00:05]} 75. Kg1 {[%clk 0:00:09]}  Kf3 {[%clk 0:00:06]} 76. Kf1 {[%clk 0:00:09]}  g2+ {[%clk 0:00:07]} 77. Kg1 {[%clk 0:00:10]}  Kg3 {[%clk 0:00:08]} 1/2-1/2


[Site "https://www.chess.com"]

[Event "Titled Tuesday Blitz August 02 Late 2022"]
[White "Wieczorek, Oskar"]
[Black "Sohier, Julien"]
[WhiteFideId "1133950"]
[BlackFideId "645346"]
[WhiteElo "2330"]
[BlackElo "2209"]
[Result "1-0"]
[Round "03"]
[TimeControl "180+1"]
[Date "2022.08.02"]
[WhiteClock "0:01:44"]
[BlackClock "0:00:07"]

1. e4 {[%clk 0:02:56]}  e5 {[%clk 0:02:59]} 2. Nf3 {[%clk 0:02:53]}  Nc6 {[%clk 0:02:59]} 3. Nc3 {[%clk 0:02:52]}  Nf6 {[%clk 0:02:58]} 4. h3 {[%clk 0:02:52]}  d5 {[%clk 0:02:57]} 5. exd5 {[%clk 0:02:52]}  Nxd5 {[%clk 0:02:56]} 6. Bb5 {[%clk 0:02:52]}  Nxc3 {[%clk 0:02:56]} 7. bxc3 {[%clk 0:02:53]}  Bd6 {[%clk 0:02:54]} 8. O-O {[%clk 0:02:53]}  O-O {[%clk 0:02:54]} 9. d4 {[%clk 0:02:54]}  exd4 {[%clk 0:02:52]} 10. cxd4 {[%clk 0:02:55]}  h6 {[%clk 0:02:43]} 11. c4 {[%clk 0:02:54]}  Qf6 {[%clk 0:02:30]} 12. Bb2 {[%clk 0:02:46]}  Ne7 {[%clk 0:02:12]} 13. Qb3 {[%clk 0:02:12]}  c6 {[%clk 0:01:42]} 14. Ba4 {[%clk 0:02:10]}  b5 {[%clk 0:01:12]} 15. cxb5 {[%clk 0:02:11]}  Be6 {[%clk 0:01:12]} 16. d5 {[%clk 0:02:05]}  Qf5 {[%clk 0:00:25]} 17. dxe6 {[%clk 0:02:03]}  cxb5 {[%clk 0:00:23]} 18. Qxb5 {[%clk 0:02:02]}  Qxb5 {[%clk 0:00:17]} 19. Bxb5 {[%clk 0:02:00]}  Rab8 {[%clk 0:00:17]} 20. exf7+ {[%clk 0:02:00]}  Kh8 {[%clk 0:00:14]} 21. a4 {[%clk 0:01:43]}  a6 {[%clk 0:00:14]} 22. Be5 {[%clk 0:01:44]}  Bxe5 {[%clk 0:00:10]} 23. Nxe5 {[%clk 0:01:45]}  axb5 {[%clk 0:00:10]} 24. Nd7 {[%clk 0:01:45]}  bxa4 {[%clk 0:00:10]} 25. Nxb8 {[%clk 0:01:45]}  Rxb8 {[%clk 0:00:10]} 26. Rfe1 {[%clk 0:01:44]}  Nd5 {[%clk 0:00:07]} 27. Re8+ {[%clk 0:01:44]} 1-0


[Site "https://www.chess.com"]

[Event "Titled Tuesday Blitz August 02 Late 2022"]
[White "Andreikin, Dmitry"]
[Black "Harsha Bharathakoti"]
[WhiteFideId "4158814"]
[BlackFideId "5078776"]
[WhiteElo "2736"]
[BlackElo "2575"]
[Result "1-0"]
[Round "04"]
[TimeControl "180+1"]
[Date "2022.08.02"]
[WhiteClock "0:00:18"]
[BlackClock "0:00:01"]

1. d4 {[%clk 0:03:00]}  Nf6 {[%clk 0:02:59]} 2. c4 {[%clk 0:03:01]}  e6 {[%clk 0:02:59]} 3. Nf3 {[%clk 0:03:01]}  d5 {[%clk 0:03:00]} 4. Nc3 {[%clk 0:02:59]}  c6 {[%clk 0:02:55]} 5. g3 {[%clk 0:02:59]}  dxc4 {[%clk 0:02:54]} 6. Bg2 {[%clk 0:02:59]}  Nbd7 {[%clk 0:02:54]} 7. a4 {[%clk 0:02:57]}  Bb4 {[%clk 0:02:46]} 8. O-O {[%clk 0:02:57]}  O-O {[%clk 0:02:46]} 9. e4 {[%clk 0:02:57]}  a5 {[%clk 0:02:27]} 10. e5 {[%clk 0:02:45]}  Nd5 {[%clk 0:02:25]} 11. Ng5 {[%clk 0:02:42]}  h6 {[%clk 0:02:01]} 12. Nge4 {[%clk 0:02:42]}  f5 {[%clk 0:01:55]} 13. exf6 {[%clk 0:02:40]}  N7xf6 {[%clk 0:01:55]} 14. Nxf6+ {[%clk 0:02:36]}  Qxf6 {[%clk 0:01:54]} 15. Ne4 {[%clk 0:02:36]}  Qg6 {[%clk 0:01:51]} 16. Bd2 {[%clk 0:02:24]}  b6 {[%clk 0:01:51]} 17. Re1 {[%clk 0:02:20]}  Ba6 {[%clk 0:01:35]} 18. Bc3 {[%clk 0:02:19]}  Rad8 {[%clk 0:01:34]} 19. Qe2 {[%clk 0:02:17]}  Kh8 {[%clk 0:01:28]} 20. h4 {[%clk 0:02:16]}  Qf5 {[%clk 0:01:27]} 21. Kh2 {[%clk 0:02:11]}  Ne7 {[%clk 0:01:09]} 22. f4 {[%clk 0:02:07]}  Qg6 {[%clk 0:01:02]} 23. Bxb4 {[%clk 0:01:58]}  axb4 {[%clk 0:01:02]} 24. a5 {[%clk 0:01:59]}  bxa5 {[%clk 0:00:59]} 25. Nc5 {[%clk 0:01:57]}  Bb5 {[%clk 0:00:55]} 26. Nxe6 {[%clk 0:01:52]}  Nf5 {[%clk 0:00:55]} 27. Qf2 {[%clk 0:01:51]}  Qf6 {[%clk 0:00:49]} 28. Nxf8 {[%clk 0:01:46]}  Qxf8 {[%clk 0:00:50]} 29. Rxa5 {[%clk 0:01:43]}  Nxd4 {[%clk 0:00:49]} 30. Ra7 {[%clk 0:01:38]}  c3 {[%clk 0:00:49]} 31. bxc3 {[%clk 0:01:18]}  bxc3 {[%clk 0:00:50]} 32. Be4 {[%clk 0:01:12]}  Qc5 {[%clk 0:00:47]} 33. Rea1 {[%clk 0:00:53]}  Qf8 {[%clk 0:00:26]} 34. h5 {[%clk 0:00:40]}  Nb3 {[%clk 0:00:24]} 35. R1a2 {[%clk 0:00:22]}  Nd4 {[%clk 0:00:08]} 36. Bg6 {[%clk 0:00:20]}  Bc4 {[%clk 0:00:05]} 37. R2a4 {[%clk 0:00:18]}  Nb5 {[%clk 0:00:03]} 38. Rxc4 {[%clk 0:00:18]}  Nxa7 {[%clk 0:00:01]} 39. Qxa7 {[%clk 0:00:19]}  Rd2+ {[%clk 0:00:01]} 40. Kh3 {[%clk 0:00:19]}  Qc8+ {[%clk 0:00:01]} 41. f5 {[%clk 0:00:19]}  c2 {[%clk 0:00:02]} 42. Qc5 {[%clk 0:00:18]}  Qd7 {[%clk 0:00:01]} 43. Qf8# {[%clk 0:00:18]} 1-0


[Site "https://www.chess.com"]

[Event "Titled Tuesday Blitz August 02 Late 2022"]
[White "Babazada, Khazar"]
[Black "Paravyan, David"]
[WhiteFideId "13413554"]
[BlackFideId "4194985"]
[WhiteElo "2409"]
[BlackElo "2569"]
[Result "0-1"]
[Round "04"]
[TimeControl "180+1"]
[Date "2022.08.02"]
[WhiteClock "0:00:03"]
[BlackClock "0:00:05"]

1. Nf3 {[%clk 0:02:56]}  Nf6 {[%clk 0:02:42]} 2. g3 {[%clk 0:02:57]}  g6 {[%clk 0:02:41]} 3. Bg2 {[%clk 0:02:55]}  Bg7 {[%clk 0:02:42]} 4. O-O {[%clk 0:02:54]}  O-O {[%clk 0:02:42]} 5. d3 {[%clk 0:02:53]}  d5 {[%clk 0:02:42]} 6. Nc3 {[%clk 0:02:54]}  d4 {[%clk 0:02:40]} 7. Nb5 {[%clk 0:02:53]}  Nc6 {[%clk 0:02:41]} 8. e4 {[%clk 0:02:49]}  dxe3 {[%clk 0:02:38]} 9. Bxe3 {[%clk 0:02:49]}  Nd5 {[%clk 0:02:38]} 10. Bc1 {[%clk 0:02:43]}  e5 {[%clk 0:02:36]} 11. Re1 {[%clk 0:02:40]}  Re8 {[%clk 0:02:35]} 12. Na3 {[%clk 0:02:38]}  Nb6 {[%clk 0:02:34]} 13. h3 {[%clk 0:02:26]}  Be6 {[%clk 0:02:31]} 14. c3 {[%clk 0:02:20]}  Qd7 {[%clk 0:02:29]} 15. Ng5 {[%clk 0:02:21]}  Bd5 {[%clk 0:02:28]} 16. Ne4 {[%clk 0:02:19]}  Qe7 {[%clk 0:02:13]} 17. Be3 {[%clk 0:02:02]}  f5 {[%clk 0:02:12]} 18. Bxb6 {[%clk 0:02:03]}  axb6 {[%clk 0:02:11]} 19. Nf6+ {[%clk 0:02:03]}  Bxf6 {[%clk 0:02:06]} 20. Bxd5+ {[%clk 0:02:04]}  Kg7 {[%clk 0:02:07]} 21. Bg2 {[%clk 0:02:01]}  Qd7 {[%clk 0:02:03]} 22. Nc4 {[%clk 0:01:59]}  b5 {[%clk 0:02:02]} 23. Ne3 {[%clk 0:01:57]}  Ne7 {[%clk 0:01:56]} 24. Bxb7 {[%clk 0:01:52]}  Rad8 {[%clk 0:01:56]} 25. Bg2 {[%clk 0:01:47]}  c6 {[%clk 0:01:50]} 26. Qb3 {[%clk 0:01:44]}  h5 {[%clk 0:01:46]} 27. Rad1 {[%clk 0:01:44]}  f4 {[%clk 0:01:42]} 28. Nf1 {[%clk 0:01:44]}  Nf5 {[%clk 0:01:39]} 29. Qb4 {[%clk 0:01:38]}  Qa7 {[%clk 0:01:37]} 30. gxf4 {[%clk 0:01:34]}  Be7 {[%clk 0:01:31]} 31. Qb3 {[%clk 0:01:14]}  Bc5 {[%clk 0:01:18]} 32. Qc2 {[%clk 0:01:13]}  Nh4 {[%clk 0:00:54]} 33. Be4 {[%clk 0:01:11]}  Qd7 {[%clk 0:00:50]} 34. Kh2 {[%clk 0:01:05]}  exf4 {[%clk 0:00:46]} 35. d4 {[%clk 0:01:03]}  Bd6 {[%clk 0:00:28]} 36. f3 {[%clk 0:01:03]}  Qe7 {[%clk 0:00:29]} 37. Nd2 {[%clk 0:00:58]}  Kh6 {[%clk 0:00:13]} 38. Rg1 {[%clk 0:00:58]}  Qf6 {[%clk 0:00:12]} 39. Rde1 {[%clk 0:00:57]}  Re6 {[%clk 0:00:12]} 40. Bxc6 {[%clk 0:00:55]}  Re3 {[%clk 0:00:12]} 41. Be4 {[%clk 0:00:52]}  Re8 {[%clk 0:00:12]} 42. Kh1 {[%clk 0:00:30]}  Qe6 {[%clk 0:00:10]} 43. Kh2 {[%clk 0:00:18]}  Nxf3+ {[%clk 0:00:07]} 44. Nxf3 {[%clk 0:00:16]}  Qxe4 {[%clk 0:00:08]} 45. Qxe4 {[%clk 0:00:14]}  R8xe4 {[%clk 0:00:09]} 46. Kg2 {[%clk 0:00:10]}  Be7 {[%clk 0:00:05]} 47. Rxe3 {[%clk 0:00:08]}  Rxe3 {[%clk 0:00:02]} 48. Re1 {[%clk 0:00:06]}  Rxe1 {[%clk 0:00:01]} 49. Nxe1 {[%clk 0:00:07]}  Kg5 {[%clk 0:00:02]} 50. Kf3 {[%clk 0:00:07]}  Kf5 {[%clk 0:00:03]} 51. Ng2 {[%clk 0:00:03]}  g5 {[%clk 0:00:03]} 52. b3 {[%clk 0:00:04]}  g4+ {[%clk 0:00:03]} 53. hxg4+ {[%clk 0:00:05]}  hxg4+ {[%clk 0:00:04]} 54. Kf2 {[%clk 0:00:06]}  Ke4 {[%clk 0:00:05]} 55. c4 {[%clk 0:00:06]}  bxc4 {[%clk 0:00:05]} 56. bxc4 {[%clk 0:00:07]}  f3 {[%clk 0:00:05]} 57. d5 {[%clk 0:00:02]}  Bc5+ {[%clk 0:00:05]} 58. Kg3 {[%clk 0:00:02]}  f2 {[%clk 0:00:05]} 59. Ne3 {[%clk 0:00:03]}  Kxe3 {[%clk 0:00:05]} 0-1


[Site "https://www.chess.com"]

[Event "Titled Tuesday Blitz August 02 Late 2022"]
[White "Bayo Milagro, Alvaro"]
[Black "Hakobyan, Aram"]
[WhiteFideId "22275240"]
[BlackFideId "13306677"]
[WhiteElo "2270"]
[BlackElo "2557"]
[Result "0-1"]
[Round "04"]
[TimeControl "180+1"]
[Date "2022.08.02"]
[WhiteClock "0:00:22"]
[BlackClock "0:02:01"]

1. d4 {[%clk 0:03:00]}  Nf6 {[%clk 0:02:59]} 2. Nf3 {[%clk 0:03:00]}  b6 {[%clk 0:02:57]} 3. c4 {[%clk 0:03:00]}  Bb7 {[%clk 0:02:58]} 4. Nc3 {[%clk 0:02:59]}  e6 {[%clk 0:02:57]} 5. a3 {[%clk 0:02:50]}  g6 {[%clk 0:02:54]} 6. Qc2 {[%clk 0:02:45]}  Bg7 {[%clk 0:02:53]} 7. e4 {[%clk 0:02:45]}  d6 {[%clk 0:02:53]} 8. Be2 {[%clk 0:02:43]}  O-O {[%clk 0:02:53]} 9. O-O {[%clk 0:02:43]}  Nc6 {[%clk 0:02:53]} 10. h3 {[%clk 0:02:39]}  Re8 {[%clk 0:02:51]} 11. Be3 {[%clk 0:02:38]}  e5 {[%clk 0:02:41]} 12. d5 {[%clk 0:02:38]}  Ne7 {[%clk 0:02:36]} 13. b4 {[%clk 0:02:36]}  c5 {[%clk 0:02:28]} 14. dxc6 {[%clk 0:01:54]}  Nxc6 {[%clk 0:02:28]} 15. Rfd1 {[%clk 0:01:52]}  Nd4 {[%clk 0:02:23]} 16. Nxd4 {[%clk 0:01:49]}  exd4 {[%clk 0:02:24]} 17. Bxd4 {[%clk 0:01:50]}  Nxe4 {[%clk 0:02:24]} 18. Bxg7 {[%clk 0:01:44]}  Kxg7 {[%clk 0:02:25]} 19. Nxe4 {[%clk 0:01:44]}  Bxe4 {[%clk 0:02:23]} 20. Qc3+ {[%clk 0:01:33]}  Kg8 {[%clk 0:02:23]} 21. Bf3 {[%clk 0:01:30]}  Rc8 {[%clk 0:02:18]} 22. Rd4 {[%clk 0:01:02]}  Qf6 {[%clk 0:02:17]} 23. Rad1 {[%clk 0:01:02]}  Bxf3 {[%clk 0:02:17]} 24. Qxf3 {[%clk 0:01:02]}  Qxf3 {[%clk 0:02:17]} 25. gxf3 {[%clk 0:01:03]}  Re2 {[%clk 0:02:13]} 26. R1d3 {[%clk 0:00:45]}  Rc2 {[%clk 0:02:03]} 27. Rxd6 {[%clk 0:00:34]}  R8xc4 {[%clk 0:02:03]} 28. Kg2 {[%clk 0:00:24]}  Ra2 {[%clk 0:02:01]} 29. f4 {[%clk 0:00:22]}  Rxf4 {[%clk 0:02:00]} 30. Rf3 {[%clk 0:00:21]}  Rxf3 {[%clk 0:02:00]} 31. Kxf3 {[%clk 0:00:22]}  Rxa3+ {[%clk 0:02:01]} 0-1


[Site "https://www.chess.com"]

[Event "Titled Tuesday Blitz August 02 Late 2022"]
[White "Bilych, Olexiy"]
[Black "Zhurbinsky, David"]
[WhiteFideId "14156504"]
[BlackFideId "2072904"]
[WhiteElo "2189"]
[BlackElo "2574"]
[Result "1-0"]
[Round "04"]
[TimeControl "180+1"]
[Date "2022.08.02"]
[WhiteClock "0:00:23"]
[BlackClock "0:00:12"]

1. e4 {[%clk 0:02:59]}  e5 {[%clk 0:02:59]} 2. Nf3 {[%clk 0:03:00]}  Nc6 {[%clk 0:03:00]} 3. Bb5 {[%clk 0:02:59]}  a6 {[%clk 0:03:01]} 4. Ba4 {[%clk 0:02:59]}  Nf6 {[%clk 0:03:02]} 5. O-O {[%clk 0:02:59]}  Be7 {[%clk 0:03:01]} 6. Re1 {[%clk 0:03:00]}  b5 {[%clk 0:03:02]} 7. Bb3 {[%clk 0:03:00]}  O-O {[%clk 0:03:03]} 8. a4 {[%clk 0:02:58]}  Bb7 {[%clk 0:03:03]} 9. Nc3 {[%clk 0:02:42]}  b4 {[%clk 0:03:04]} 10. Nd5 {[%clk 0:02:41]}  a5 {[%clk 0:03:05]} 11. d3 {[%clk 0:02:28]}  d6 {[%clk 0:03:05]} 12. Be3 {[%clk 0:01:55]}  Qd7 {[%clk 0:02:49]} 13. Nxf6+ {[%clk 0:01:43]}  Bxf6 {[%clk 0:02:49]} 14. d4 {[%clk 0:01:42]}  exd4 {[%clk 0:02:42]} 15. Nxd4 {[%clk 0:01:42]}  Nxd4 {[%clk 0:02:38]} 16. Bxd4 {[%clk 0:01:43]}  Bxd4 {[%clk 0:02:36]} 17. Qxd4 {[%clk 0:01:44]}  Rfe8 {[%clk 0:02:35]} 18. Rad1 {[%clk 0:01:43]}  Rad8 {[%clk 0:02:34]} 19. f3 {[%clk 0:01:39]}  Qe7 {[%clk 0:02:27]} 20. Qa7 {[%clk 0:01:35]}  c5 {[%clk 0:02:15]} 21. Bd5 {[%clk 0:01:22]}  Bxd5 {[%clk 0:02:00]} 22. Qxe7 {[%clk 0:01:23]}  Rxe7 {[%clk 0:02:00]} 23. Rxd5 {[%clk 0:01:22]}  Red7 {[%clk 0:01:54]} 24. Red1 {[%clk 0:01:16]}  f6 {[%clk 0:01:53]} 25. Kf2 {[%clk 0:01:15]}  Kf7 {[%clk 0:01:53]} 26. h4 {[%clk 0:01:15]}  Ke6 {[%clk 0:01:53]} 27. Ke3 {[%clk 0:01:15]}  g6 {[%clk 0:01:47]} 28. g4 {[%clk 0:01:14]}  Rf8 {[%clk 0:01:32]} 29. g5 {[%clk 0:01:12]}  f5 {[%clk 0:01:22]} 30. e5 {[%clk 0:01:03]}  Rfd8 {[%clk 0:01:22]} 31. f4 {[%clk 0:01:03]}  c4 {[%clk 0:00:41]} 32. exd6 {[%clk 0:00:59]}  Rxd6 {[%clk 0:00:36]} 33. Re5+ {[%clk 0:00:59]}  Kf7 {[%clk 0:00:35]} 34. Rxd6 {[%clk 0:00:59]}  Rxd6 {[%clk 0:00:36]} 35. Rxa5 {[%clk 0:00:57]}  Rd1 {[%clk 0:00:14]} 36. Rb5 {[%clk 0:00:51]}  c3 {[%clk 0:00:09]} 37. bxc3 {[%clk 0:00:49]}  bxc3 {[%clk 0:00:10]} 38. Rc5 {[%clk 0:00:49]}  Ra1 {[%clk 0:00:07]} 39. a5 {[%clk 0:00:49]}  Ke6 {[%clk 0:00:06]} 40. Kd4 {[%clk 0:00:41]}  Kd6 {[%clk 0:00:05]} 41. Rd5+ {[%clk 0:00:40]}  Kc6 {[%clk 0:00:06]} 42. Re5 {[%clk 0:00:40]}  Ra4+ {[%clk 0:00:06]} 43. Ke3 {[%clk 0:00:36]}  Ra2 {[%clk 0:00:06]} 44. Kd3 {[%clk 0:00:36]}  Ra4 {[%clk 0:00:07]} 45. Ke3 {[%clk 0:00:36]}  Ra2 {[%clk 0:00:07]} 46. a6 {[%clk 0:00:36]}  Kd7 {[%clk 0:00:05]} 47. Rc5 {[%clk 0:00:27]}  Rxa6 {[%clk 0:00:05]} 48. Rxc3 {[%clk 0:00:28]}  Re6+ {[%clk 0:00:06]} 49. Kf3 {[%clk 0:00:28]}  Re4 {[%clk 0:00:06]} 50. Rd3+ {[%clk 0:00:27]}  Kc6 {[%clk 0:00:07]} 51. Re3 {[%clk 0:00:25]}  Rc4 {[%clk 0:00:07]} 52. Re7 {[%clk 0:00:20]}  Rc3+ {[%clk 0:00:06]} 53. Ke2 {[%clk 0:00:17]}  Rxc2+ {[%clk 0:00:07]} 54. Kd3 {[%clk 0:00:18]}  Rf2 {[%clk 0:00:07]} 55. Ke3 {[%clk 0:00:15]}  Ra2 {[%clk 0:00:08]} 56. Rxh7 {[%clk 0:00:15]}  Ra3+ {[%clk 0:00:07]} 57. Kd4 {[%clk 0:00:16]}  Ra4+ {[%clk 0:00:07]} 58. Ke5 {[%clk 0:00:16]}  Re4+ {[%clk 0:00:06]} 59. Kf6 {[%clk 0:00:16]}  Rxf4 {[%clk 0:00:06]} 60. Kxg6 {[%clk 0:00:17]}  Kd6 {[%clk 0:00:06]} 61. h5 {[%clk 0:00:17]}  Ke6 {[%clk 0:00:06]} 62. Rf7 {[%clk 0:00:17]}  Rf1 {[%clk 0:00:03]} 63. h6 {[%clk 0:00:17]}  f4 {[%clk 0:00:02]} 64. h7 {[%clk 0:00:17]}  Rh1 {[%clk 0:00:03]} 65. Rxf4 {[%clk 0:00:17]}  Ke7 {[%clk 0:00:03]} 66. Rf7+ {[%clk 0:00:16]}  Ke6 {[%clk 0:00:04]} 67. Rf8 {[%clk 0:00:16]}  Ke7 {[%clk 0:00:04]} 68. h8=Q {[%clk 0:00:16]}  Rg1 {[%clk 0:00:04]} 69. Qf6+ {[%clk 0:00:16]}  Kd7 {[%clk 0:00:05]} 70. Rd8+ {[%clk 0:00:16]}  Kc7 {[%clk 0:00:06]} 71. Qd6+ {[%clk 0:00:17]}  Kb7 {[%clk 0:00:07]} 72. Rb8+ {[%clk 0:00:18]}  Ka7 {[%clk 0:00:07]} 73. Qa6+ {[%clk 0:00:19]}  Kxa6 {[%clk 0:00:06]} 74. Rb2 {[%clk 0:00:18]}  Ka5 {[%clk 0:00:05]} 75. Kf6 {[%clk 0:00:18]}  Ka6 {[%clk 0:00:05]} 76. g6 {[%clk 0:00:19]}  Rf1+ {[%clk 0:00:06]} 77. Kg7 {[%clk 0:00:19]}  Rc1 {[%clk 0:00:06]} 78. Kf7 {[%clk 0:00:19]}  Rc7+ {[%clk 0:00:06]} 79. Kg8 {[%clk 0:00:20]}  Rc8+ {[%clk 0:00:06]} 80. Kh7 {[%clk 0:00:20]}  Rc1 {[%clk 0:00:06]} 81. g7 {[%clk 0:00:19]}  Rh1+ {[%clk 0:00:07]} 82. Kg8 {[%clk 0:00:20]}  Rg1 {[%clk 0:00:07]} 83. Rb4 {[%clk 0:00:19]}  Ka5 {[%clk 0:00:07]} 84. Rf4 {[%clk 0:00:20]}  Kb6 {[%clk 0:00:08]} 85. Kf7 {[%clk 0:00:20]}  Kc6 {[%clk 0:00:08]} 86. g8=Q {[%clk 0:00:20]}  Rd1 {[%clk 0:00:08]} 87. Qg6+ {[%clk 0:00:20]}  Rd6 {[%clk 0:00:08]} 88. Rf6 {[%clk 0:00:20]}  Re6 {[%clk 0:00:08]} 89. Rxe6+ {[%clk 0:00:20]}  Kd5 {[%clk 0:00:09]} 90. Qf5+ {[%clk 0:00:21]}  Kc4 {[%clk 0:00:09]} 91. Re4+ {[%clk 0:00:21]}  Kd3 {[%clk 0:00:10]} 92. Qf3+ {[%clk 0:00:22]}  Kc2 {[%clk 0:00:11]} 93. Re2+ {[%clk 0:00:22]}  Kd1 {[%clk 0:00:12]} 94. Qf1# {[%clk 0:00:23]} 1-0


[Site "https://www.chess.com"]

[Event "Titled Tuesday Blitz August 02 Late 2022"]
[White "Chiu, Isaac"]
[Black "Alekseenko, Kirill"]
[WhiteFideId "30900654"]
[BlackFideId "4135539"]
[WhiteElo "2181"]
[BlackElo "2682"]
[Result "0-1"]
[Round "04"]
[TimeControl "180+1"]
[Date "2022.08.02"]
[WhiteClock "0:00:50"]
[BlackClock "0:01:06"]

1. d4 {[%clk 0:03:00]}  d5 {[%clk 0:02:56]} 2. c4 {[%clk 0:03:00]}  dxc4 {[%clk 0:02:57]} 3. Nf3 {[%clk 0:02:59]}  a6 {[%clk 0:02:57]} 4. e3 {[%clk 0:02:59]}  Bg4 {[%clk 0:02:57]} 5. Bxc4 {[%clk 0:02:57]}  e6 {[%clk 0:02:58]} 6. O-O {[%clk 0:02:57]}  Nf6 {[%clk 0:02:58]} 7. Nbd2 {[%clk 0:02:54]}  Nc6 {[%clk 0:02:57]} 8. h3 {[%clk 0:02:51]}  Bh5 {[%clk 0:02:57]} 9. Be2 {[%clk 0:02:43]}  Bd6 {[%clk 0:02:56]} 10. b3 {[%clk 0:02:42]}  O-O {[%clk 0:02:55]} 11. Bb2 {[%clk 0:02:43]}  Qe7 {[%clk 0:02:56]} 12. Nc4 {[%clk 0:02:43]}  Rfd8 {[%clk 0:02:53]} 13. Qc1 {[%clk 0:02:29]}  Rac8 {[%clk 0:02:52]} 14. Rd1 {[%clk 0:02:24]}  Qe8 {[%clk 0:02:43]} 15. a3 {[%clk 0:02:18]}  Ne7 {[%clk 0:02:43]} 16. b4 {[%clk 0:02:15]}  Ned5 {[%clk 0:02:43]} 17. Qc2 {[%clk 0:02:12]}  Bg6 {[%clk 0:02:43]} 18. Bd3 {[%clk 0:02:12]}  Bh5 {[%clk 0:02:38]} 19. Nfe5 {[%clk 0:02:11]}  Bxd1 {[%clk 0:02:35]} 20. Rxd1 {[%clk 0:02:08]}  h6 {[%clk 0:02:25]} 21. g3 {[%clk 0:02:05]}  Ne7 {[%clk 0:02:22]} 22. Na5 {[%clk 0:02:01]}  Rb8 {[%clk 0:02:21]} 23. Be2 {[%clk 0:01:54]}  Bxe5 {[%clk 0:02:18]} 24. dxe5 {[%clk 0:01:54]}  Rxd1+ {[%clk 0:02:18]} 25. Bxd1 {[%clk 0:01:53]}  Nfd5 {[%clk 0:02:17]} 26. e4 {[%clk 0:01:52]}  Nb6 {[%clk 0:02:15]} 27. Qxc7 {[%clk 0:01:50]}  Qd8 {[%clk 0:02:15]} 28. Qd6 {[%clk 0:01:46]}  Nc6 {[%clk 0:02:04]} 29. Be2 {[%clk 0:01:18]}  Nxa5 {[%clk 0:01:35]} 30. bxa5 {[%clk 0:01:19]}  Nd7 {[%clk 0:01:29]} 31. Bc3 {[%clk 0:01:17]}  Rc8 {[%clk 0:01:26]} 32. Bb4 {[%clk 0:01:17]}  Nb8 {[%clk 0:01:25]} 33. f4 {[%clk 0:00:55]}  Nc6 {[%clk 0:01:20]} 34. f5 {[%clk 0:00:55]}  Qg5 {[%clk 0:01:06]} 35. fxe6 {[%clk 0:00:50]}  Qxg3+ {[%clk 0:01:06]} 36. Kf1 {[%clk 0:00:50]}  Qxh3+ {[%clk 0:01:06]} 0-1


[Site "https://www.chess.com"]